Cogmind - Beta 17 @@@ ROGUE MODE // 2026.07.24 @ 22:23:41 Player: naththebg Result: Destroyed by HT-PWL(R) with Subdweller Beam Cannon Performance ------------- Evolutions (0) 0 Regions Visited (2) 400 Robots Destroyed (20) 100 Value Destroyed (522) 522 Prototype IDs (6) 120 Alien Tech Used (0) 0 Bonus (5300) 5300 TOTAL SCORE: 6442 Bonus ------- Prayed to X0-1V1 5000 Major X0-1V1 Interference 300 Cogmind --------- Core Integrity 0/150 Matter 197/300 Energy 200/200 System Corruption 19% Temperature Cool (9) Movement Treading (160) Location -10/Subcaves Parts ------- > --- POWER (2) -------- Subdweller Power Source > --- PROPULSION (1) --- Light Treads > --- UTILITY (3) ------ Small Storage Unit X0-1V1's Piety Tracker > --- WEAPON (1) ------- (None) > --- INVENTORY (9) ---- Light Treads Compact Wheel Subdweller Monowheel Subdweller Monowheel High-capacity Storage Unit Heavy EM Pulse Gun Light Cannon Peak State ------------ > --- POWER ------------ Light Ion Engine > --- PROPULSION ------- Light Treads Light Treads > --- UTILITY ---------- Small Storage Unit X0-1V1's Piety Tracker > --- WEAPON ----------- Subdweller Laser Subdweller Machine Gun > --- INVENTORY -------- Light Treads Aluminum Leg Compact Wheel Subdweller Monowheel High-capacity Storage Unit Light Armor Plating Heavy EM Pulse Gun Light Cannon [Rating: 22] Favorites ----------- Power Light Ion Engine Engine Light Ion Engine Propulsion Aluminum Leg Treads Light Treads Leg Aluminum Leg Utility Small Storage Unit Device X0-1V1's Piety Tracker Storage Small Storage Unit Protection Light Armor Plating Weapon Medium Laser Energy Gun Medium Laser Ballistic Gun Subdweller Machine Gun Ballistic Cannon Light Cannon Build | -11 -10 -10 ------- Run | Yrd Mat Sub Slots Evolved . | . . . Power . | . . . Propulsion . | . . . Utility . | . . . Weapon . | . . . Parts Attached 19 | 6 6 7 Power 3 | 1 . 2 Engine 3 | 1 . 2 Core . | . . . Reactor . | . . . Propulsion 7 | 2 2 3 Treads 3 | . . 3 Leg 4 | 2 2 . Wheel . | . . . Hover . | . . . Flight . | . . . Utility 4 | 1 3 . Device 1 | . 1 . Storage 1 | 1 . . Processor . | . . . Hackware . | . . . Protection 2 | . 2 . Artifact . | . . . Weapon 5 | 2 1 2 Energy Gun 3 | 2 . 1 Energy Cannon . | . . . Ballistic Gun 1 | . . 1 Ballistic Cannon 1 | . 1 . Launcher . | . . . Special Weapon . | . . . Impact Weapon . | . . . Slashing Weapon . | . . . Piercing Weapon . | . . . Special Melee Weapon . | . . . Unidentified Prototypes 1 | . 1 . Parts Lost 6 | . . 6 Power 2 | . . 2 Propulsion 1 | . . 1 Utility 1 | . . 1 Weapon 2 | . . 2 Highest Loss Streak 4 | . . 4 To Critical Strikes . | . . . Average Backups 8 | 4 7 8 Power . | . 1 . Propulsion 4 | 3 4 5 Utility 1 | . . 1 Weapon 1 | . 1 . Tool/Special . | . . . Unused Backups 8 | . 1 7 Power . | . . . Propulsion 4 | . . 4 Utility 1 | . . 1 Weapon 3 | . 1 2 Tool/Special . | . . . Average Slot Usage (%) 97 | . 99 96 Engine 14 | . 14 14 Treads 11 | . . 20 Leg 14 | . 28 4 Device 8 | . . 14 Storage 14 | . 14 14 Protection 6 | . 13 1 Energy Gun 13 | . 15 12 Ballistic Gun 2 | . . 4 Ballistic Cannon 10 | . 12 9 Peak Build Rating 22 | 6 19 22 Average Rating 14 | 3 7 20 On Entrance 8 | . 6 19 Avg Prop Armor Cover (%) . | . . . Naked Turns . | . . . Heaviest Build 21 | 12 16 21 Greatest Support 40 | 20 20 40 Greatest Overweight (x) 1 | . . 1 Average Overweight (x) . | . . . Largest Inventory Capacity 9 | 8 9 9 Average Capacity 8 | 6 8 9 Most Carried 9 | 7 8 9 Average Carried 8 | 4 7 8 Final Capacity 9 | 8 9 9 Final Carried 8 | 6 8 7 Class Distribution -------------------- 100% | Mutant Dominant Class ---------------- Mutant | -10/Materials Mutant | -10/Subcaves Resources | -11 -10 -10 ----------- Run | Yrd Mat Sub Matter Collected 705 | 242 184 279 Remotely . | . . . Salvage Created 556 | . 347 209 Parts 36 | . 24 12 Haulers Intercepted 1 | . 1 . Recyclers Shooed . | . . . Parts Field Recycled . | . . . Retrieved Matter . | . . . Parts Self-Destructed 1 | . . 1 Prevented . | . . . Parts Restored . | . . . Kills | -11 -10 -10 ------- Run | Yrd Mat Sub Combat Hostiles Destroyed 17 | . 11 6 Guns 6 | . 3 3 Cannons 11 | . 8 3 Classes Destroyed 7 | . 5 2 Hauler 1 | . 1 . Operator 1 | . 1 . Watcher 1 | . 1 . Swarmer 6 | . 6 . Grunt 5 | . 5 . Sentry 1 | . . 1 Subdweller 5 | . . 5 Best Kill Streak 4 | . 4 2 Combat Bots Only 3 | . 3 2 Max Kills in Single Turn 2 | . 2 1 Gunslinging . | . . . Exploded . | . . . Melee . | . . . Uniques/NPCs Destroyed . | . . . Combat | -11 -10 -10 -------- Run | Yrd Mat Sub Hostile Shots Fired 76 | . 27 49 Missed 15 | . 7 8 Hits 61 | . 20 41 Projectile 61 | . 20 41 Critical Strikes 3 | . 1 2 Damage Taken 1103 | . 222 881 Core 270 | . 9 261 Absorbed by Shields . | . . . Core Remaining (%) 100 | 100 . . Volleys Fired 101 | . 36 65 Largest 2 | . 2 2 Hottest 90 | . 80 90 Shots Fired 162 | . 72 90 Gun 79 | . 36 43 Cannon 83 | . 36 47 Launcher . | . . . Special . | . . . Kinetic 96 | . 36 60 Thermal 66 | . 36 30 Explosive . | . . . Electromagnetic . | . . . Robot Hit Streak 9 | . 8 9 Robot Miss Streak 7 | . 7 2 Penetration Max . | . . . Secondary Targets . | . . . Shots Hit Robots 77 | . 38 39 Core Hits 30 | 1 17 12 Critical Kills 1 | . . 1 Critical Parts Destroyed . | . . . Critical Strikes 3 | . 2 1 Burn 2 | . 2 . Destroy 1 | . . 1 Melee Attacks . | . . . Impact . | . . . Slashing . | . . . Piercing . | . . . Sneak Attacks . | . . . Combat Hostiles . | . . . Follow-up Attacks . | . . . Damage Inflicted 1356 | 4 610 742 Guns 713 | . 191 522 Cannons 639 | . 419 220 Explosions . | . . . Melee . | . . . Ramming 4 | 4 . . Kinetic 812 | . 419 393 Thermal 540 | . 191 349 Explosive . | . . . Electromagnetic . | . . . Impact . | . . . Slashing . | . . . Piercing . | . . . Highest Corruption 19 | . . 19 Average Corruption 10 | . . 10 Corruption Purged . | . . . Corruption Blocked . | . . . Effects 29 | . . 29 Message Errors 5 | . . 5 Matter Fused 11 | . . 11 Heat Flow Errors 2 | . . 2 Energy Discharges 5 | . . 5 Data Loss (minor) 2 | . . 2 Misfires 1 | . . 1 Alerts 2 | . . 2 Weapon Failures 1 | . . 1 Overload Shots . | . . . Overflow Damage . | . . . Projectiles . | . . . Explosions . | . . . Melee . | . . . Knockbacks 9 | . 7 2 Impact . | . . . Kinetic 9 | . 7 2 Secondary . | . . . Self-Inflicted Damage . | . . . Shots . | . . . Rammed . | . . . Targets Rammed 2 | 1 1 . Kicked 2 | 1 1 . Crushed . | . . . Highest Temperature 270 | . 270 211 Average Temperature 70 | . 71 68 Received Heat Transfer 180 | . 36 144 Siege Activations . | . . . Martial Activations . | . . . Shielding Activations . | . . . Robots Disrupted . | . . . Combat Hostiles . | . . . Robots Corrupted . | . . . Combat Hostiles . | . . . Parts Fried . | . . . Impact Corruptions . | . . . Robots Melted . | . . . Combat Hostiles . | . . . Parts Melted 2 | . 1 1 Heat Transferred 1201 | . 703 498 Parts Sabotaged . | . . . Parts Stolen . | . . . Parts Stripped . | . . . Power Chain Reactions . | . . . Alert | -11 -10 -10 ------- Run | Yrd Mat Sub Maximum Alert Level . | . . . Low Security (%) 100 | 100 100 . Level 1 . | . . . Level 2 . | . . . Level 3 . | . . . Level 4 . | . . . Level 5 . | . . . High Security . | . . . Max Security . | . . . Peak Influence 86 | . 86 . Initial . | . . . Average 29 | . 31 . Influence Increases 345 | . 325 20 Destroy 0b10 Robot/C 240 | . 220 20 Destroy 0b10 Robot/NC 15 | . 15 . Destroy Leader 44 | . 44 . Successful Hack 14 | . 14 . Destroy Structure 2 | . 2 . Lose Combat Pursuer 30 | . 30 . Influence Decreases 345 | . 325 20 Time Decay 290 | . 270 20 Purge Threat 55 | . 55 . Squads Dispatched 1 | . 1 . Investigation 1 | . 1 . Extermination . | . . . Reinforcement . | . . . Assault . | . . . Garrison . | . . . Intercept . | . . . Searches Triggered . | . . . Construction Impeded . | . . . Haulers Reinforced . | . . . Active Scanning Responses . | . . . Cargo Convoy Interrupts . | . . . Stealth | -11 -10 -10 --------- Run | Yrd Mat Sub Distress Signals 2 | . 2 . Communications Jammed . | . . . Distress Signals . | . . . Times Spotted 24 | . 15 9 Peak Tracking Total 5 | . 5 3 Tactical Retreats 2 | . 2 . Traps | -11 -10 -10 ------- Run | Yrd Mat Sub Traps Triggered 2 | . 2 . Indirectly . | . . . Trap Hack Attempts . | . . . Triggered . | . . . Disarmed . | . . . Reprogrammed . | . . . Reused . | . . . Traps Extracted . | . . . Installed . | . . . Triggered . | . . . Machines | -11 -10 -10 ---------- Run | Yrd Mat Sub Machines Disabled . | . . . Max in Single Turn . | . . . Machines Repaired . | . . . Machines Dismantled . | . . . Machines Sabotaged . | . . . Overloaded Fab Kills . | . . . Hacking | -11 -10 -10 --------- Run | Yrd Mat Sub Machines Accessed 8 | . 8 . Terminals 6 | . 6 . Fabricators . | . . . Repair Stations . | . . . Recycling Units 2 | . 2 . Scanalyzers . | . . . Garrison Access . | . . . Total Hacks 28 | . 28 . Successful 11 | . 11 . Failed 17 | . 17 . Catastrophic . | . . . Database Lockouts . | . . . Manual 19 | . 19 . Terminals 23 | . 23 . Fabricators . | . . . Repair Stations . | . . . Recycling Units 5 | . 5 . Scanalyzers . | . . . Garrison Access . | . . . Terminal Hacks 8 | . 8 . Robot Analysis 3 | . 3 . Prototype ID Bank 3 | . 3 . Unreport Threat 1 | . 1 . Zone Layout 1 | . 1 . Fabricator Hacks . | . . . Repair Station Hacks . | . . . Recycling Unit Hacks 2 | . 2 . Retrieve Components 2 | . 2 . Scanalyzer . | . . . Garrison Access Hacks . | . . . Unauthorized Hacks 1 | . 1 . Terminals 1 | . 1 . Botnet 1 | . 1 . Fabricators . | . . . Repair Stations . | . . . Recycling Units . | . . . Scanalyzers . | . . . Garrison Access . | . . . Data Cores Recovered 1 | . 1 . Used 1 | . 1 . Hacking Detections 7 | . 7 . Full Trace Events . | . . . Feedback Events . | . . . Feedback Blocked . | . . . Robot Schematics Acquired . | . . . Robots Built . | . . . Authchips . | . . . Time . | . . . Total Robot Build Rating . | . . . Part Schematics Acquired . | . . . Parts Built . | . . . Authchips . | . . . Time . | . . . Total Part Build Rating . | . . . Part Studies Acquired . | . . . Parts Repaired . | . . . Time . | . . . Parts Recycled . | . . . Recycled Matter . | . . . Retrieved Matter . | . . . Retrieved Components 7 | . 7 . Parts Scanalyzed . | . . . Part Schematics Acquired . | . . . Parts Damaged . | . . . Bothacking | -11 -10 -10 ------------ Run | Yrd Mat Sub Used RIF Installer . | . . . Robots Hacked . | . . . Non-combat . | . . . Combat . | . . . Robot Hacks Applied . | . . . Relay Couplers Released . | . . . Fabnet Peak Effective % . | . . . Robots Rewired . | . . . Allies Hacked . | . . . Hacks Repelled . | . . . Allies | -11 -10 -10 -------- Run | Yrd Mat Sub Total Allies . | . . . Largest Group . | . . . Highest-Rated Group . | . . . Highest-Rated Ally . | . . . Total Orders . | . . . Ally Attacks . | . . . Total Damage . | . . . Kills . | . . . Allies Corrupted . | . . . Allies Melted . | . . . X0-1V1 Amusement Gains 20 | . 20 . Good Acts 3 | . 1 2 Bad Acts 8 | . . 8 Intel | -11 -10 -10 ------- Run | Yrd Mat Sub Active Infowar (turns) . | . . . Robot Analysis Total 3 | . 3 . Derelict Logs Recovered 1 | . . 1 Drone Launches . | . . . Drone Recoveries . | . . . Exploration | -11 -10 -10 ------------- Run | Yrd Mat Sub Turns Passed 1912 | 54 778 1080 Spaces Moved 1112 | 36 512 564 Core 9 | 9 . . Treads 452 | . . 452 Legs 651 | 27 512 112 Wheels . | . . . Hover . | . . . Flight . | . . . Fastest Speed 50 | 50 120 120 Average Speed 137 | 102 120 155 Slowest Speed 240 | 120 120 240 Overloaded Moves . | . . . Propulsion Burnouts . | . . . Robots Hopped . | . . . Potential Cave-ins . | . . . Cave-ins Triggered . | . . . Exploration Rate (%) 41 | 3 80 42 Regions Visited 2 Branch Regions 1 Pre-discovered Areas 1 | . . 1 Known Exits Taken . | . . . Unknown Exits Taken 2 | 1 1 . Scrap Searched 1 | . . 1 Spaces Dug . | . . . Terrain Destroyed . | . . . Melee . | . . . Projectile . | . . . AOE . | . . . Terrain Rammed . | . . . Walls Destroyed . | . . . Machines Disabled . | . . . Actions | -11 -10 -10 --------- Run | Yrd Mat Sub Total 1331 | 51 605 675 Wait 69 | . 42 27 Move 1110 | 35 511 564 Hop . | . . . Pick Up 19 | 9 3 7 Fast Attach 6 | 3 2 1 Attach 7 | 3 . 4 Detach 1 | . 1 . Swap 8 | . 4 4 Drop 8 | . 5 3 Fire 101 | . 36 65 Melee . | . . . Ram . | . . . Kick 2 | 1 1 . Crush . | . . . Escape Stasis . | . . . Rewire . | . . . Trap . | . . . Miscellaneous . | . . . Route ------- -11/Scrapyard -10/Materials (discovered 4 exits: [*Mat] / [*Min x2] / [*Sub]) -10/Subcaves (discovered 1 exit: [*Mat]) History --------- Turn | Location | Event 20 | -11/Scrapyard | Discovered new exit (range 16) 55 | -11/Scrapyard | Entered Materials 123 | -10/Materials | Discovered new exit (range 7) 300 | -10/Materials | Build established: Mutant 519 | -10/Materials | Discovered new exit (range 14) 654 | -10/Materials | Discovered new exit (range 15) 816 | -10/Materials | Discovered new exit (range 10) 827 | -10/Materials | Prayed at D.C.S.S. Altar Unit 831 | -10/Materials | Inventory capacity permanently improved by X0-1V1 (+1; -100 max core) 833 | -10/Materials | Entered Subcaves 838 | -10/Subcaves | Learned location of Zion (-6) 1120 | -10/Subcaves | Discovered new exit (range 14) 1252 | -10/Subcaves | X0-1V1 activates XOMVISION 1617 | -10/Subcaves | X0-1V1 mutated your Propulsion slot to Power slot 1726 | -10/Subcaves | Core integrity fell below 50% 1753 | -10/Subcaves | Core integrity fell below 20% 1764 | -10/Subcaves | System corruption reached 10% 1799 | -10/Subcaves | X0-1V1 mutated your Weapon slot to Utility slot 1892 | -10/Subcaves | X0-1V1 rescued you from certain death 1913 | -10/Subcaves | Destroyed by HT-PWL(R) with Subdweller Beam Cannon Last Messages --------------- 01798_ System corrupted: Matter fused (-7). 01799_ Sub. Laser tossed aside. 01799_ X0-1V1: "Evolution hits right when you least expect it." (Weapon slot mutated into Utility slot) 01802_ Acquired Sub. Laser. 01815_ WB BPFSQKONIVSGSORJMC9WSHGXIT%MMC 01827_ Acquired Sub. Power Source. 01837_ Subatomizers dissect the Sub. Monowheel. 01857_ System corrupted: Matter fused (-5). 01877_ System corrupted: Heat flow error (+195). 01892_ X0-1V1 feels like keeping you around a little longer. 01892_ Core integrity partially restored (72). 01894_ Sub. Machine Gun shoots sparks and powers down. 01896_ System corrupted: Energy discharge (-90). 01896_ Discarded Broken Sub. Machine Gun. 01903_ Lgt. Treads destroyed. 01905_ Sub. Laser destroyed. 01907_ Lgt. Armor Plating destroyed. 01909_ Lgt. Ion Engine destroyed. 01913_ X0-1V1 chuckles heartily! Map ----- +----------------------------------------------------+ | ??????????#### #??# ###?#######????# ^ | | ?????????## ### ### ###### ^ # | | ?????????# ## #?? | | ?????????# #?? | | ?????????## ## # #### #?# | | ?????????# ?####### ####??### ## | | ?????????# # # ### ##??????### ## ##??? | | ?????????# #????????## #?##?????? | | ?????????# #####??????###????????? | | ???????????# ### # #????????????????? | | ???????????##?????### #????????????????? | | ????????????????##?# #?????????????????# | | ??????????????### ## ##????????????????# | | ??????????????# #####????????????# | | ??????????????## #### #????????????# | | ???????????????## # #??##### ##??????#??#### | | ????????????????### #??????## #??????# $?# | | ?????????????????## ##??????# #?###??#$ "##" | | ??????????#??????# ##????## ### ##??# &=%/!# | | ?????????## ????## ###??# ### #!#" # | | ?????????# ??## #??#### ##??#?#& # | | ?????????# ### #?????# #?????###&& | | ??????????# & ##????# ##?????# ! | | ?????????## ! ##???## ##??### | | ?????????# & #????#### #### # | | ?????????# ### ### @ #???????## | | ?????????####??# ###?## #####????# ## | | ?????????????### #????# ##??## # ###? | | ????????????## ##????# #?## #######??? | | ????????????# ##?????## % ### ##????????? | | ???????????## ##???????## ##?????????? | | ????????#### ##?????????# ##??????????? | | ????????# ## % ##?????????# ###???????????? | | ????????# & ###?###???# #?????????????? | | ????????# "### #???# #????????????? | | ????????##"""& #???## RR #????????????? | | ?????????#""""##""# ""#????#####R #????????????? | | ?????????#" ###### ##???????## ????????????? | | ?????????#""##??#### #????????# ???????????? | | ?????????#"##?###" #????????# ??????????? | | ?????????######" ####????????# ??????????? | | ???????????##"" ##???????????""""" ?????????? | | ???????????# "" ##????????????#"""" ?????????? | | ???????????# ##""#??????????????????"" ?????????? | | ???????????## ##??????????????????????????????? | | ???????????## #???????????????????????????????? | | ???????????# #[ ##??????????????????????????????? | | ???????????# = ###????????????????????????????? | | ???????????## #????????????????????????????? | | ????????????##### ##????????????????????????????? | +----------------------------------------------------+ Best States ------------- Heat Dissipation 25 Energy Generation 20 Energy Capacity 225 Matter Stores 300 Matter Capacity 300 Sight Range 16 Terrain Scan Density 10 Armor Coverage 150 Evasion (%) 55 Recoil Reduction 2 Item Schematics ----------------- None Robot Schematics ------------------ None Fabricated ------------ Nothing Repaired ---------- Nothing Studied --------- None Alien Tech Used ----------------- None Achievements -------------- None Challenges ------------ None Game ------ Seed DecoyAntigravDeflector Manual? 0 Play Time 00:15:58 Cumulative 503.5 hours Start 2026.07.24 @ 22:09:06 End 2026.07.24 @ 22:23:41 Sessions 1 Manual Loads 0 Difficulty Rogue Special Mode None Game No. 256 Rogue 256 Adventurer 0 Explorer 0 Win Type - Total 15 Types 10/0/2/0/0/0/0/1/0/2 Lore% 86 Gallery% 81 Achievement% 69 Wizard Run 0 Options --------- Layout 0 ASCII 0 Keyboard 0 Movement Mouse Keybinds 0 Fullscreen 1 Font 18/SmallcapsGlow Map View 76x50 Zoom Use 0% Tactical HUD 1 Map Filters NONE Filters NONE Steam 1 RUN: e48144b6-bb3d-4e33-9a31-bb771adb7a79